Cogmind - Beta 10.2 @@@ ROGUE MODE // 2021.03.04 @ 02:37:22 Player: BOTHUNTER Result: Destroyed by G-47 Trooper with Particle Gun Performance ------------- Evolutions (0) 0 Regions Visited (2) 400 Robots Destroyed (3) 15 Value Destroyed (112) 112 Prototype IDs (0) 0 Alien Tech Used (0) 0 Bonus (0) 0 TOTAL SCORE: 527 Bonus ------- None Cogmind --------- Core Integrity 0/250 Matter 250/300 Energy 125/125 System Corruption 0% Temperature Cool (9) Movement Core (100) Ox1 Location -10/Mines Parts ------- > --- POWER (1) -------- Light Ion Engine > --- PROPULSION (2) --- (None) > --- UTILITY (2) ------ Structural Scanner > --- WEAPON (2) ------- (None) > --- INVENTORY (4) ---- (None) Peak State ------------ > --- POWER ------------ Light Ion Engine > --- PROPULSION ------- (None) > --- UTILITY ---------- (None) > --- WEAPON ----------- Heavy EM Pulse Gun Heavy EM Pulse Gun > --- INVENTORY -------- Heavy EM Pulse Gun Heavy EM Pulse Gun [Rating: 5] Favorites ----------- Power Light Ion Engine Engine Light Ion Engine Propulsion None Utility Structural Scanner Device Structural Scanner Weapon Heavy EM Pulse Gun Energy Gun Heavy EM Pulse Gun Special Weapon Mining Laser Build | -11 -10 -10 ------- Run | Scr Mat Min Slots Evolved . | . . . Power . | . . . Propulsion . | . . . Utility . | . . . Weapon . | . . . Parts Attached 13 | 2 6 5 Power 2 | . 1 1 Engine 2 | . 1 1 Core . | . . . Reactor . | . . . Propulsion . | . . . Treads . | . . . Leg . | . . . Wheel . | . . . Hover . | . . . Flight . | . . . Utility 1 | . . 1 Device 1 | . . 1 Storage . | . . . Processor . | . . . Hackware . | . . . Protection . | . . . Artifact . | . . . Weapon 10 | 2 5 3 Energy Gun 7 | 2 4 1 Energy Cannon . | . . . Ballistic Gun . | . . . Ballistic Cannon . | . . . Launcher . | . . . Special Weapon 3 | . 1 2 Impact Weapon . | . . . Slashing Weapon . | . . . Piercing Weapon . | . . . Special Melee Weapon . | . . . Unidentified Prototypes . | . . . Parts Lost 9 | . 5 4 Power 1 | . 1 . Propulsion . | . . . Utility . | . . . Weapon 8 | . 4 4 Highest Loss Streak 4 | . 4 3 Average Slot Usage (%) 25 | . 21 34 Engine 3 | . 1 6 Device 3 | . . 10 Energy Gun 15 | . 19 6 Special Weapon 3 | . . 12 Naked Turns 9 | . 9 . Heaviest Build 7 | 4 6 7 Greatest Support 3 | 3 3 3 Greatest Overweight (x) 2 | 1 1 2 Average Overweight (x) . | . . . Largest Inventory Capacity 4 | 4 4 4 Average Capacity 4 | 4 4 4 Most Carried 4 | 3 4 2 Average Carried 1 | 1 1 . Final Capacity 4 | 4 4 4 Final Carried 3 | 3 3 . Class Distribution -------------------- 100% | Mutant Dominant Class ---------------- Mutant | -10/Materials Mutant | -10/Mines Resources | -11 -10 -10 ----------- Run | Scr Mat Min Matter Collected 235 | 186 49 . Remotely . | . . . Salvage Created 127 | . 127 . Parts 5 | . 5 . Haulers Intercepted . | . . . Recyclers Shooed 1 | . 1 . Parts Field Recycled . | . . . Retrieved Matter . | . . . Parts Self-Destructed . | . . . Prevented . | . . . Kills | -11 -10 -10 ------- Run | Scr Mat Min Combat Hostiles Destroyed 3 | . 3 . Guns 2 | . 2 . Classes Destroyed 1 | . 1 . Grunt 3 | . 3 . Best Kill Streak 3 | . 3 . Combat Bots Only 3 | . 3 . Max Kills in Single Turn 1 | . 1 . Gunslinging . | . . . Exploded . | . . . Melee . | . . . Uniques/NPCs Destroyed . | . . . Combat | -11 -10 -10 -------- Run | Scr Mat Min Damage Taken 696 | . 343 353 Core 263 | . 88 175 Absorbed by Shields . | . . . Core Remaining (%) 100 | 100 . . Volleys Fired 22 | . 16 6 Largest 2 | . 2 2 Hottest 200 | . 90 200 Shots Fired 33 | . 25 8 Gun 29 | . 25 4 Cannon . | . . . Launcher . | . . . Special 4 | . . 4 Kinetic . | . . . Thermal 4 | . . 4 Explosive . | . . . Electromagnetic 29 | . 25 4 Robot Hit Streak 9 | . 9 1 Robot Miss Streak 2 | . 1 2 Penetration Max . | . . . Secondary Targets . | . . . Shots Hit Robots 25 | . 21 4 Core Hits 2 | . 2 . Critical Hits . | . . . Critical Kills . | . . . Critical Parts Destroyed . | . . . Melee Attacks . | . . . Impact . | . . . Slashing . | . . . Piercing . | . . . Sneak Attacks . | . . . Combat Hostiles . | . . . Follow-up Attacks . | . . . Damage Inflicted 418 | . 357 61 Guns 270 | . 257 13 Cannons . | . . . Explosions 100 | . 100 . Melee . | . . . Ramming . | . . . Kinetic . | . . . Thermal 148 | . 100 48 Explosive . | . . . Electromagnetic 270 | . 257 13 Impact . | . . . Slashing . | . . . Piercing . | . . . Highest Corruption . | . . . Average Corruption . | . . . Corruption Purged . | . . . Overload Shots . | . . . Overflow Damage 38 | . 38 . Projectiles . | . . . Explosions 38 | . 38 . Melee . | . . . Knockbacks . | . . . Impact . | . . . Kinetic . | . . . Secondary . | . . . Self-Inflicted Damage 63 | . 63 . Shots 2 | . 2 . Rammed . | . . . Targets Rammed . | . . . Kicked . | . . . Crushed . | . . . Highest Temperature 237 | . 237 100 Average Temperature 74 | . 88 52 Received Heat Transfer 354 | . 150 204 Effects 2 | . 2 . Interference 2 | . 2 . Siege Activations . | . . . Robots Corrupted 1 | . 1 . Combat Hostiles 1 | . 1 . Parts Fried 1 | . 1 . Impact Corruptions . | . . . Robots Melted . | . . . Combat Hostiles . | . . . Parts Melted . | . . . Heat Transferred 300 | . 200 100 Parts Sabotaged . | . . . Parts Stolen . | . . . Parts Stripped . | . . . Power Chain Reactions 2 | . 2 . Missiles Intercepted . | . . . Alert | -11 -10 -10 ------- Run | Scr Mat Min Peak Influence 75 | . 75 25 Initial 25 | . . 25 Average 18 | . 26 7 Maximum Alert Level . | . . . Low Security (%) 100 | 100 100 100 Level 1 . | . . . Level 2 . | . . . Level 3 . | . . . Level 4 . | . . . Level 5 . | . . . High Security . | . . . Max Security . | . . . Squads Dispatched 1 | . 1 . Investigation 1 | . 1 . Extermination . | . . . Reinforcement . | . . . Assault . | . . . Garrison . | . . . Intercept . | . . . Construction Impeded . | . . . Haulers Reinforced . | . . . Stealth | -11 -10 -10 --------- Run | Scr Mat Min Distress Signals 1 | . 1 . Communications Jammed . | . . . Distress Signals . | . . . Times Spotted 9 | . 7 2 Peak Tracking Total 3 | . 3 2 Tactical Retreats 2 | . 2 . Traps | -11 -10 -10 ------- Run | Scr Mat Min Traps Triggered 1 | . 1 . Indirectly . | . . . Trap Hack Attempts . | . . . Triggered . | . . . Disarmed . | . . . Reprogrammed . | . . . Reused . | . . . Traps Extracted . | . . . Installed . | . . . Triggered . | . . . Machines | -11 -10 -10 ---------- Run | Scr Mat Min Machines Disabled 1 | . . 1 Max in Single Turn 1 | . . 1 Machines Sabotaged . | . . . Garrisons Compromised . | . . . Overloaded Fab Kills . | . . . Fab Network Shutdowns . | . . . Hacking | -11 -10 -10 --------- Run | Scr Mat Min Machines Accessed 1 | . 1 . Terminals . | . . . Fabricators . | . . . Repair Stations . | . . . Recycling Units 1 | . 1 . Scanalyzers . | . . . Garrison Access . | . . . Total Hacks 1 | . 1 . Successful 1 | . 1 . Failed . | . . . Catastrophic . | . . . Database Lockouts . | . . . Manual . | . . . Terminals . | . . . Fabricators . | . . . Repair Stations . | . . . Recycling Units 1 | . 1 . Scanalyzers . | . . . Garrison Access . | . . . Terminal Hacks . | . . . Fabricator Hacks . | . . . Repair Station Hacks . | . . . Recycling Unit Hacks 1 | . 1 . Report Inventory 1 | . 1 . Scanalyzer . | . . . Garrison Access Hacks . | . . . Unauthorized Hacks . | . . . Terminals . | . . . Fabricators . | . . . Repair Stations . | . . . Recycling Units . | . . . Scanalyzers . | . . . Garrison Access . | . . . Data Cores Recovered . | . . . Used . | . . . Hacking Detections . | . . . Full Trace Events . | . . . Feedback Events . | . . . Feedback Blocked . | . . . Robot Schematics Acquired . | . . . Robots Built . | . . . Matter . | . . . Time . | . . . Total Robot Build Rating . | . . . Part Schematics Acquired . | . . . Parts Built . | . . . Matter . | . . . Time . | . . . Total Part Build Rating . | . . . Parts Repaired . | . . . Time . | . . . Parts Recycled . | . . . Recycled Matter . | . . . Retrieved Matter . | . . . Retrieved Components . | . . . Parts Scanalyzed . | . . . Part Schematics Acquired . | . . . Parts Damaged . | . . . Bothacking | -11 -10 -10 ------------ Run | Scr Mat Min Used RIF Installer . | . . . Robots Hacked . | . . . Non-combat . | . . . Combat . | . . . Robot Hacks Applied . | . . . Relay Couplers Released . | . . . Robots Rewired . | . . . Allies Hacked . | . . . Hacks Repelled . | . . . Allies | -11 -10 -10 -------- Run | Scr Mat Min Total Allies . | . . . Largest Group . | . . . Highest-Rated Group . | . . . Highest-Rated Ally . | . . . Total Orders . | . . . Ally Attacks . | . . . Total Damage . | . . . Kills . | . . . Allies Corrupted . | . . . Allies Melted . | . . . Intel | -11 -10 -10 ------- Run | Scr Mat Min Robot Analysis Total . | . . . Derelict Logs Recovered . | . . . Drone Launches . | . . . Drone Recoveries . | . . . Exploration | -11 -10 -10 ------------- Run | Scr Mat Min Turns Passed 242 | 22 153 67 Spaces Moved 217 | 32 144 41 Core 217 | 32 144 41 Treads . | . . . Legs . | . . . Wheels . | . . . Hover . | . . . Flight . | . . . Fastest Speed 50 | 50 50 50 Average Speed 59 | 51 54 82 Slowest Speed 150 | 100 100 150 Overloaded Moves . | . . . Propulsion Burnouts . | . . . Robots Hopped . | . . . Cave-ins Triggered . | . . . Exploration Rate (%) 14 | 2 30 11 Regions Visited 2 Branch Regions 1 Pre-discovered Areas . | . . . Known Exits Taken . | . . . Unknown Exits Taken 2 | 1 1 . Scrap Searched 1 | . . 1 Spaces Dug . | . . . Terrain Destroyed 5 | . 3 2 Melee . | . . . Projectile 2 | . . 2 AOE 3 | . 3 . Terrain Rammed . | . . . Walls Destroyed . | . . . Machines Disabled . | . . . Actions | -11 -10 -10 --------- Run | Scr Mat Min Total 285 | 36 192 57 Wait 23 | . 18 5 Move 215 | 31 143 41 Hop . | . . . Pick Up 8 | 2 6 . Fast Attach 6 | 2 2 2 Attach 7 | . 4 3 Detach 1 | 1 . . Swap . | . . . Drop 3 | . 3 . Fire 22 | . 16 6 Melee . | . . . Ram . | . . . Kick . | . . . Crush . | . . . Escape Stasis . | . . . Rewire . | . . . Trap . | . . . Miscellaneous . | . . . Route ------- -11/Scrapyard -10/Materials -10/Mines History --------- Turn | Location | Event 14 | -11/Scrapyard | Discovered new exit (range 16) 23 | -11/Scrapyard | Entered Materials 154 | -10/Materials | Discovered new exit (range 12) 161 | -10/Materials | Lost 4 parts (1p3w) 176 | -10/Materials | Entered Mines 187 | -10/Mines | Core integrity fell below 50% 219 | -10/Mines | Lost 3 parts (3w) 226 | -10/Mines | Core integrity fell below 20% 243 | -10/Mines | Destroyed by G-47 Trooper with Particle Gun Last Messages --------------- 00154_ EXIT=FOUND 00154_ K-01 Serf collects debris. 00154_ U-05 Engineer builds a Wall. 00156_ K-01 Serf collects debris. 00158_ U-05 Engineer lays Concrete. 00159_ U-05 Engineer builds a Wall. 00164_ Hvy. EM Pulse Gun destroyed. 00170_ Acquired Mining Laser. LOCATION=UNKNOWN GOAL=ESCAPE 00182_ Mining Laser destroyed. 00196_ Searching scrap... 00196_ Found EM Pulse Gun. 00196_ Found Structural Scanner. 00196_ Found 31 Matter. 00197_ Acquired EM Pulse Gun. 00199_ Acquired Structural Scanner. 00224_ Seismic Survey Station disabled. 00224_ Mining Laser destroyed. 00229_ EM Pulse Gun destroyed. Map ----- +----------------------------------------------------+ | ???????????# """ #???????????? | | ???????????# """ ###?????????? | | ???????????# """ # #?????????? | | ???????????# # #?????????? | | ???????????###### # #?????????? | | ????????????????# # #?????????? | | ????????????????# # ##????????? | | ????????????????#% #????????? | | ????????????????### #########? | | ??????????????????# ##" #? | | ??????????????????# #? | | ??????????????????# ### "" #? | | ??????????????????# ?# "" #? | | ??????????????????### ## """ #? | | ????????????????????# ## #? | | ????????????????????# ###g####? | | ????????????????????# #???? | | ????????????????????#### #???? | | ???????????????????????# #???? | | ?????????????????####### #???? | | ?????????????????# #???? | | ?????????????????# ##### ##??? | | ??????????????????????# #??? | | ??????????????????????# #??? | | ??????????????????????# #??? | | ??????????????????????## @ #??? | | ???????????????????????# #??? | | ???????????????????????# #?? | | ???????????????????????# #?? | | ???????????????????????# ##?? | | ??????????????????????? #??? | | ??????????????????????? #??? | | ?????????????????????? #??? | | ??????????????????????""" #??? | | ??????????????????????""" #??? | | ????????????????????? """ #??? | | ????????????????????????? ##??? | | ????????????????????????? ????? | | ?????????????????????????#????? | | ??????????????????????????????? | | ??????????????????????????????? | | ??????????????????????????????? | | ??????????????????????????????? | | ??????????????????????????????? | | ??????????????????????????????? | | ??????????????????????????????? | | ??????????????????????????????? | | ??????????????????????????????? | | ??????????????????????????????? | | ??????????????????????????????? | +----------------------------------------------------+ Best States ------------- Heat Dissipation 25 Energy Generation 10 Energy Capacity 125 Matter Stores 290 Matter Capacity 300 Sight Range 16 Terrain Scan Density 10 Evasion (%) 50 Item Schematics ----------------- None Robot Schematics ------------------ None Fabricated ------------ Nothing Alien Tech Used ----------------- None Achievements -------------- None Challenges ------------ None Game ------ Seed MiningThiefMembrane Manual? 0 Play Time 00:03:50 Cumulative 126.7 hours Start 2021.03.04 @ 02:34:18 End 2021.03.04 @ 02:37:22 Sessions 1 Manual Loads 0 Difficulty Rogue Special Mode None Game No. 188 Rogue 164 Adventurer 22 Explorer 2 Win Type - Total 1 Types 1/0/0/0/0/0/0/0/0 Lore% 52 Gallery% 56 Achievement% 45 Wizard Run 0 Options --------- ASCII 0 Keyboard 0 Movement Numpad Keybinds 0 Fullscreen 1 Font 14/SmallcapsGlow Map View 84x54 Tactical HUD 1 Map Filters NONE Filters NONE Steam 1 RUN: 782797d7-0c50-45da-8a05-94dba39e26fb